bitfinex/quotes_SOLUSD_20240612
["timestamp","ask_amount","ask_price","bid_price","bid_amount"]
[1718171118259,0.17,150.19,150.15,2.4641]
[1718171118440,8.47,150.18,150.15,2.4641]
[1718171118638,0.17,150.19,150.15,2.4641]
[1718171118639,8.47,150.17,150.15,2.4641]
[1718171118841,0.17,150.19,150.13,16.2905]
[1718171119035,19.96,150.25,150.13,16.2905]
[1718171119235,15.7528,150.26,150.16,14.722]
[1718171119436,15.7528,150.26,150.16,6.252]
[1718171119635,8.47,150.2,150.16,6.252]
[1718171120056,8.47,150.2,150.16,8.7159]
[1718171120261,2.4631,150.22,150.16,8.7159]
[1718171120439,8.47,150.2,150.17,2.4638]
[1718171120645,8.47,150.21,150.18,2.4636]
[1718171120974,8.47,150.22,150.19,2.4634]
[1718171121562,8.47,150.21,150.19,2.4634]
[1718171121863,35.7128,150.26,150.16,6.252]
[1718171122041,8.47,150.19,150.15,2.4641]
[1718171122450,2.4636,150.19,150.14,2.4643]
[1718171122765,8.47,150.18,150.14,2.4643]
[1718171123464,8.47,150.18,150.14,2.4642]
[1718171123652,10.9337,150.18,150.13,2.4645]
[1718171123845,8.47,150.16,150.13,2.4645]
[1718171125160,8.47,150.15,150.12,3.3269484]
[1718171125359,8.47,150.16,150.12,0.8623484]
[1718171125560,0.17,150.2,150.13,18.3281]
[1718171125763,0.17,150.2,150.12,0.8623484]
[1718171125764,8.47,150.18,150.14,2.4643]
[1718171126151,10.9338,150.18,150.13,2.4645]
[1718171126457,0.68,150.2,150.12,0.8623484]
[1718171126458,8.47,150.17,150.12,0.8623484]
[1718171126667,0.17,150.18,150.12,0.8623484]
[1718171126881,8.47,150.15,150.12,0.8623484]
[1718171127170,10.9343,150.14,150.12,0.8623484]
[1718171127557,8.47,150.14,150.12,0.8623484]
[1718171127760,0.17,150.16,150.12,0.8623484]
[1718171127961,8.47,150.16,150.14,2.4643]
[1718171128268,2.4642,150.15,150.12,0.8623484]
[1718171128572,8.47,150.14,150.12,0.8623484]
[1718171129451,8.47,150.13,150.12,0.8623484]
[1718171130069,11.4445,150.13,150.12,0.8623484]
[1718171132048,8.98,150.13,150.12,0.8623484]
[1718171132376,11.4445,150.13,150.12,0.8623484]
[1718171132981,11.6145,150.13,150.12,0.8623484]
[1718171134777,9.15,150.13,150.12,0.8623484]
[1718171134965,0.51,150.13,150.12,0.8623484]
[1718171135376,8.98,150.13,150.12,0.8623484]
[1718171135754,8.47,150.13,150.12,0.8623484]
[1718171136055,8.47,150.14,150.12,0.8623484]
[1718171136263,10.9343,150.14,150.12,0.8623484]
[1718171136679,5.40708466,150.17,150.14,2.4643]
[1718171136983,19.96,150.2,150.12,0.8623484]
[1718171137180,8.47,150.18,150.14,2.4643]
[1718171137361,8.47,150.18,150.13,2.4644]
[1718171137568,10.9339,150.17,150.13,2.4644]
[1718171138574,10.9339,150.17,150.12,0.8623484]
[1718171138575,2.4637,150.18,150.14,2.4643]
[1718171138771,2.4636,150.19,150.15,2.4641]
[1718171138962,8.47,150.19,150.16,2.464]
[1718171139161,8.47,150.19,150.15,2.4641]
[1718171139569,10.9336,150.19,150.15,2.4641]
[1718171139772,10.9338,150.18,150.14,2.4642]
[1718171140181,2.4639,150.17,150.13,2.4644]
[1718171140389,2.464,150.16,150.12,3.3269484]
[1718171140561,10.934,150.16,150.12,3.3269484]
[1718171141269,10.9343,150.15,150.12,0.8623484]
[1718171141670,2.4643,150.15,150.12,0.8623484]
[1718171141882,44.05187287,150.22,150.17,2.4637]
[1718171142089,8.47,150.2,150.18,2.4635]
[1718171142267,8.47,150.21,150.15,13.3984]
[1718171142465,8.47,150.21,150.17,2.4637]
[1718171142770,21.4798,150.26,150.18,2.4636]
[1718171142988,8.47,150.21,150.18,2.4636]
[1718171143290,8.47,150.23,150.16,20.2118]
[1718171143479,10.9327,150.24,150.18,8.47]
[1718171143669,8.47,150.24,150.21,2.4632]
[1718171144064,10.9324,150.26,150.21,2.4632]
[1718171144384,43.6848,150.3,150.21,2.4632]
[1718171144385,15.1934,150.3,150.21,1.33119338]
[1718171144684,2.4618,150.3,150.22,8.47]
[1718171144998,8.47,150.28,150.25,2.4625]
[1718171145290,2.4619,150.29,150.24,2.4626]
[1718171145601,15.1934,150.34,150.23,11.0405]
[1718171145602,4.9222,150.34,150.23,11.0405]
[1718171145760,2.4607,150.36,150.31,2.4614]
[1718171146085,8.47,150.34,150.3,2.4617]
[1718171146397,8.47,150.36,150.25,15.284]
[1718171146593,8.47,150.37,150.32,2.4614]
[1718171147262,8.47,150.35,150.26,45.0]
[1718171147596,10.9311,150.34,150.28,8.47]
[1718171147890,8.47,150.32,150.27,2.4621]
[1718171148098,8.47,150.3,150.23,6.1148]
[1718171148272,8.47,150.3,150.24,8.47]
[1718171148273,2.462,150.29,150.24,8.47]
[1718171148473,10.9317,150.3,150.24,8.47]
[1718171148876,0.17,150.33,150.23,6.1148]
[1718171149182,2.4611,150.34,150.24,57.3134]
[1718171149493,0.17,150.32,150.27,2.462]
[1718171149870,2.6314,150.32,150.27,2.462]
[1718171150071,2.6314,150.32,150.26,2.4622]
[1718171150072,2.4616,150.31,150.26,2.4622]
[1718171150371,0.17,150.32,150.23,6.1148]
[1718171150563,0.17,150.3,150.24,2.4626]
[1718171150981,2.4619,150.29,150.24,2.4626]
[1718171151189,0.51,150.3,150.2,15.0802]
[1718171151381,2.4622,150.27,150.19,6.6607]
[1718171151694,2.4622,150.27,150.22,2.4629]
[1718171151872,0.51,150.28,150.19,6.6607]
[1718171151873,2.9721,150.28,150.19,6.6607]
[1718171152072,2.6322,150.27,150.21,2.4631]
[1718171152587,2.6322,150.27,150.22,2.463]
[1718171152795,2.6323,150.26,150.21,2.4631]
[1718171153472,0.51,150.25,150.19,6.6607]
[1718171153680,2.4627,150.24,150.19,9.124]
[1718171154005,0.34,150.25,150.14,23.4005]
[1718171154006,0.34,150.25,150.14,22.1487]
[1718171154178,2.463,150.22,150.17,2.4638]
[1718171154503,2.8029,150.23,150.18,2.4636]
[1718171154670,0.34,150.23,150.19,2.4635]
[1718171155371,0.34,150.23,150.14,22.1487]
[1718171155591,0.51,150.24,150.2,2.4632]
[1718171155792,0.34,150.24,150.21,2.4632]
[1718171155990,0.17,150.27,150.21,2.463]
[1718171156405,24.8841,150.29,150.21,2.463]
[1718171156574,2.4623,150.27,150.22,2.463]
[1718171156976,2.4626,150.25,150.2,2.4632]
[1718171157175,24.8845,150.27,150.19,2.4633]
[1718171157482,2.4625,150.25,150.2,2.4633]
[1718171157681,0.68,150.26,150.23,2.4627]
[1718171157993,25.51,150.31,150.2,4.9265]
[1718171158307,2.462,150.28,150.23,2.4628]
[1718171158685,2.462,150.28,150.24,2.4627]
[1718171159077,2.462,150.28,150.23,2.4628]
[1718171159272,2.4622,150.27,150.23,2.4628]
[1718171159789,2.4621,150.28,150.23,2.4628]
[1718171159992,0.34,150.29,150.14,22.1487]
[1718171160299,0.34,150.29,150.21,2.4632]
[1718171160300,2.4624,150.26,150.21,2.4632]
[1718171160898,0.17,150.27,150.17,12.3188]
[1718171160899,2.4626,150.25,150.2,2.4633]
[1718171161414,2.6326,150.25,150.2,2.4633]
[1718171164710,2.4623,150.27,150.22,2.4629]
[1718171165389,2.4623,150.27,150.23,2.4628]
[1718171165800,2.4625,150.26,150.21,2.4631]
[1718171165983,2.4626,150.25,150.21,2.4631]
[1718171166487,2.4624,150.26,150.21,2.4631]
[1718171166898,2.4624,150.26,150.18,14.7817]
[1718171167076,2.4622,150.27,150.2,12.3166]
[1718171167285,2.6321,150.28,150.23,2.4627]
[1718171167705,30.4334,150.31,150.21,4.9262]
[1718171167875,2.4619,150.29,150.24,2.4625]
[1718171168728,6.169,150.35,150.26,12.3118]
[1718171168915,6.169,150.35,150.26,4.9247]
[1718171169210,2.4614,150.32,150.28,2.4619]
[1718171170097,2.4614,150.32,150.27,2.4621]
[1718171170892,254.8,150.36,150.29,2.4618]
[1718171171096,2.461,150.35,150.3,2.4617]
[1718171171433,2.461,150.35,150.31,2.4615]
[1718171172011,2.461,150.35,150.3,2.4616]
[1718171172187,2.4611,150.34,150.3,2.4616]
[1718171172389,2.4609,150.35,150.3,2.4616]
[1718171172897,254.8,150.36,150.28,4.9239]
[1718171173402,2.461,150.35,150.3,2.4616]
[1718171173586,2.461,150.35,150.28,4.9239]
[1718171173788,2.461,150.35,150.3,2.4617]
[1718171175895,2.461,150.35,150.31,2.4615]
[1718171176219,257.2608,150.36,150.31,2.4615]
[1718171176591,257.2607,150.36,150.32,2.4613]
[1718171177291,257.2607,150.36,150.31,2.4614]
[1718171177492,254.8,150.36,150.29,12.3093]
[1718171177694,254.8,150.36,150.32,2.4613]
[1718171177910,257.2607,150.36,150.32,2.4613]
[1718171178099,254.8,150.36,150.32,2.4613]
[1718171178890,257.2607,150.36,150.32,2.4613]
[1718171181201,254.8,150.36,150.33,2.4612]
[1718171184114,257.2608,150.36,150.32,2.4613]
[1718171185619,254.8,150.36,150.33,2.4612]
[1718171185997,257.2607,150.36,150.32,2.4613]
[1718171186395,254.8,150.36,150.33,2.4612]
[1718171187429,254.8,150.36,150.35,2.4609]
[1718171187716,382.4603,150.39,150.35,2.4609]
[1718171187717,2.4603,150.39,150.35,2.4608]
[1718171188412,2.4605,150.38,150.34,2.461]
[1718171188728,2.4607,150.37,150.32,2.4612]
[1718171189437,6.92322053,150.43,150.32,0.17]
[1718171189720,4.9193,150.43,150.36,2.4606]
[1718171189900,4.9193,150.43,150.37,2.4605]
[1718171189901,2.4599,150.41,150.37,2.4605]
[1718171190097,2.4599,150.41,150.36,2.4606]
[1718171190313,2.4599,150.41,150.37,2.4605]
[1718171191121,2.6298,150.42,150.37,2.4605]
[1718171192223,2.6298,150.42,150.38,2.4604]
[1718171193021,8.49,150.41,150.38,2.4604]
[1718171193239,8.49,150.41,150.37,2.4605]
[1718171193718,2.6298,150.42,150.37,2.4605]
[1718171193897,8.49,150.41,150.37,2.4605]
[1718171194823,8.49,150.41,150.38,2.4604]
[1718171195933,8.49,150.41,150.38,2.4603]
[1718171197709,8.49,150.41,150.39,2.4602]
[1718171199600,8.49,150.41,150.36,7.3822]
[1718171199821,0.17,150.42,150.4,2.4601]
[1718171200004,8.66,150.42,150.4,2.4601]
[1718171200205,8.49,150.41,150.4,2.4601]
[1718171200425,8.49,150.41,150.39,2.4602]
[1718171201625,0.17,150.42,150.35,8.49]
[1718171201932,8.49,150.41,150.37,4.921]
[1718171202101,8.49,150.41,150.39,2.4601]
[1718171203514,0.17,150.42,150.39,2.4601]
[1718171203717,8.66,150.42,150.37,4.921]
[1718171203929,8.66,150.42,150.39,2.4602]
[1718171204110,8.49,150.41,150.39,2.4602]
[1718171205011,8.49,150.41,150.38,2.4603]
[1718171205623,8.49,150.41,150.39,2.4602]
[1718171205923,8.49,150.41,150.38,2.4603]
[1718171207828,8.49,150.41,150.39,2.4602]
[1718171208024,8.49,150.41,150.38,2.4603]
[1718171208427,8.49,150.41,150.37,2.4605]
[1718171208628,0.17,150.4,150.36,2.4606]
[1718171208805,8.49,150.38,150.36,2.4606]
[1718171210643,8.49,150.38,150.37,2.4605]
[1718171210930,8.49,150.39,150.37,2.4605]
[1718171211435,8.49,150.4,150.39,2.4602]
[1718171211935,8.49,150.4,150.38,2.4603]
[1718171212634,8.49,150.39,150.38,2.4603]
[1718171213143,8.49,150.39,150.34,12.3047]
[1718171213539,8.49,150.39,150.36,2.4606]
[1718171214139,8.49,150.39,150.37,2.4605]
[1718171215547,8.49,150.39,150.36,2.4607]
[1718171216032,8.49,150.38,150.35,2.4608]
[1718171217063,8.49,150.38,150.32,13.4127]
[1718171217351,8.49,150.34,150.31,2.4614]
[1718171217524,8.49,150.34,150.32,2.4613]
[1718171217712,8.49,150.34,150.31,2.4615]
[1718171218143,8.49,150.33,150.31,2.4615]
[1718171218326,8.49,150.33,150.32,2.4614]
[1718171218529,2.4606,150.37,150.34,2.4609]
[1718171218530,0.17,150.37,150.34,2.4609]
[1718171218740,8.49,150.36,150.34,2.4609]
[1718171218919,0.68,150.38,150.31,8.49]
[1718171219232,8.66,150.38,150.36,2.4606]
[1718171219621,15.9552,150.39,150.37,2.4605]
[1718171219839,8.49,150.38,150.37,2.4605]
[1718171220527,15.9552,150.39,150.37,2.4605]
[1718171220721,24.4452,150.39,150.37,2.4605]
[1718171221523,24.4452,150.39,150.36,2.4607]
[1718171221754,24.4452,150.39,150.32,4.9227]
[1718171221924,8.49,150.38,150.34,2.4609]
[1718171222443,8.49,150.37,150.27,16.5642]
[1718171222742,8.49,150.36,150.28,20.0]
[1718171222952,8.49,150.34,150.28,20.0]
[1718171223457,8.49,150.33,150.27,22.9449]
[1718171223745,8.49,150.33,150.27,31.4349]
[1718171224652,8.49,150.33,150.27,14.8707]
[1718171224961,8.49,150.32,150.27,6.3807]
[1718171225535,8.49,150.34,150.28,8.49]
[1718171226045,0.17,150.34,150.29,8.49]
[1718171226249,8.49,150.35,150.29,8.49]
[1718171226846,0.17,150.38,150.27,6.3807]
[1718171227141,0.68,150.38,150.27,6.3807]
[1718171227352,45.68,150.38,150.27,6.3807]
[1718171228564,0.17,150.36,150.27,6.3807]
[1718171228875,45.51,150.36,150.27,6.3807]
[1718171229167,45.68,150.36,150.27,6.3807]
[1718171229769,0.68,150.36,150.27,6.3807]
[1718171233375,41.38007529,150.39,150.27,6.3807]
[1718171234461,0.34,150.38,150.27,6.3807]
[1718171234663,0.51,150.37,150.27,6.3807]
[1718171234863,0.17,150.36,150.27,6.3807]
[1718171237392,2.461,150.35,150.28,4.9241]
[1718171237567,0.17,150.34,150.27,13.7672]
[1718171237884,2.6311,150.34,150.29,2.4618]
[1718171238182,0.34,150.33,150.27,6.3807]
[1718171238377,2.4614,150.32,150.27,8.8428]
[1718171238688,2.4613,150.33,150.27,8.8428]
[1718171239014,2.6314,150.32,150.27,8.8428]
[1718171239188,2.6314,150.32,150.27,6.3807]
[1718171239189,2.8014,150.32,150.27,6.3807]
[1718171239367,2.4615,150.31,150.27,6.3807]
[1718171239763,2.8015,150.32,150.27,6.3807]
[1718171239961,2.8015,150.32,150.27,8.8428]
[1718171240669,2.8015,150.32,150.27,2.4621]
[1718171240861,2.4616,150.31,150.26,2.4623]
[1718171241061,2.8014,150.32,150.27,2.4622]
[1718171241368,2.8015,150.32,150.27,2.4622]
[1718171241677,2.4617,150.3,150.25,2.4625]
[1718171242583,2.6316,150.31,150.26,2.4623]
[1718171242879,0.17,150.31,150.27,2.4622]
[1718171243082,0.17,150.31,150.24,4.9253]
[1718171243083,2.8016,150.31,150.26,2.4623]
[1718171243455,0.34,150.32,150.23,6.3279]
[1718171243659,0.34,150.32,150.28,2.462]
[1718171244170,0.34,150.32,150.26,4.9245]
[1718171244370,0.34,150.32,150.28,2.462]
[1718171244567,0.34,150.32,150.26,4.9245]
[1718171244783,2.8014,150.32,150.27,2.4621]
[1718171247183,8.5,150.31,150.27,2.4621]
[1718171248181,2.8014,150.32,150.25,8.5]
[1718171248182,0.34,150.32,150.28,2.462]
[1718171248379,8.5,150.31,150.28,2.462]
[1718171248584,8.5,150.31,150.26,4.9246]
[1718171248782,8.5,150.31,150.27,2.4621]
[1718171249479,2.8014,150.32,150.27,2.4621]
[1718171249785,8.5,150.31,150.27,2.4621]
[1718171250677,2.8014,150.32,150.27,2.4621]
[1718171250985,8.5,150.3,150.27,2.4621]
[1718171251657,8.5,150.3,150.26,2.4623]
[1718171252083,8.5,150.3,150.27,2.4622]
[1718171252863,8.5,150.3,150.26,2.4623]
[1718171253285,8.5,150.3,150.27,2.4622]
[1718171253482,8.5,150.3,150.26,2.4623]
[1718171253686,8.5,150.29,150.25,2.4624]
[1718171253866,8.5,150.27,150.23,8.7906]
[1718171254061,8.5,150.26,150.22,2.4629]
[1718171254990,8.5,150.25,150.22,2.4629]
[1718171255286,8.5,150.26,150.22,2.4629]
[1718171255764,8.5,150.25,150.22,2.4629]
[1718171256294,8.5,150.24,150.2,2.4632]
[1718171256469,8.5,150.24,150.18,4.9274]
[1718171256470,8.5,150.22,150.18,2.4636]
[1718171256666,8.5,150.21,150.17,16.3373]
[1718171256867,8.5,150.2,150.16,2.464]
[1718171257691,8.5,150.19,150.16,2.464]
[1718171258491,8.5,150.19,150.17,2.4638]
[1718171258698,8.5,150.2,150.17,2.4638]
[1718171259795,8.5,150.2,150.16,2.4639]
[1718171260383,2.4627,150.24,150.16,4.928]
[1718171260587,0.68,150.23,150.19,2.4634]
[1718171260791,9.18,150.23,150.19,2.4634]
[1718171261090,9.18,150.23,150.17,8.5]
[1718171261593,8.5,150.22,150.18,2.4636]
[1718171262272,9.18,150.23,150.18,2.4636]
[1718171264299,11.6428,150.23,150.18,2.4636]
[1718171266287,11.6428,150.23,150.17,10.9637]
[1718171268417,11.6428,150.23,150.17,2.4637]
[1718171270188,2.463,150.22,150.17,2.4637]
[1718171270921,10.963,150.22,150.17,2.4637]
[1718171271214,10.963,150.22,150.16,10.9639]
[1718171271582,0.51,150.21,150.15,17.3523]
[1718171271786,2.4635,150.2,150.15,17.3523]
[1718171271994,10.9635,150.2,150.15,8.8523]
[1718171272691,11.1332,150.21,150.16,2.464]
[1718171273991,8.5,150.2,150.16,2.464]
[1718171274208,10.9634,150.2,150.15,6.3882]
[1718171274412,10.9634,150.2,150.15,8.8523]
[1718171274803,8.5,150.2,150.16,2.464]
[1718171275210,8.5,150.2,150.17,2.4638]
[1718171275795,8.5,150.2,150.16,2.4639]
[1718171275988,0.17,150.19,150.13,15.0497]
[1718171276292,9.01,150.19,150.15,2.4641]
[1718171277000,9.01,150.19,150.13,15.0497]
[1718171277206,8.5,150.18,150.14,2.4643]
[1718171277423,9.01,150.19,150.15,2.4641]
[1718171277591,2.4637,150.18,150.13,2.4644]
[1718171277795,10.9637,150.18,150.13,2.4644]
[1718171278011,8.5,150.18,150.14,2.4643]
[1718171278217,8.5,150.18,150.14,2.4642]
[1718171278597,0.51,150.17,150.14,2.4642]
[1718171278810,0.34,150.17,150.14,2.4642]
[1718171279012,8.5,150.18,150.14,2.4642]
[1718171281008,10.9639,150.17,150.12,3.3269484]
[1718171281412,10.964,150.16,150.12,0.8623484]
[1718171282206,2.4645,150.13,150.12,0.8623484]
[1718171282410,11.3042,150.15,150.12,0.8623484]
[1718171282611,8.84,150.15,150.12,0.8623484]
[1718171282809,11.3042,150.15,150.12,0.8623484]
[1718171284104,8.67,150.14,150.12,0.8623484]
[1718171285128,0.34,150.13,150.12,0.8623484]
[1718171285407,0.68,150.13,150.12,0.8623484]
[1718171285907,0.17,150.13,150.12,0.8623484]
[1718171286107,8.5,150.14,150.12,0.8623484]
[1718171286926,0.17,150.14,150.12,0.8623484]
[1718171287214,0.51,150.14,150.12,0.8623484]
[1718171290216,9.01,150.14,150.12,0.8623484]
[1718171290512,11.4743,150.14,150.12,0.8623484]
[1718171293134,11.1345,150.13,150.12,0.8623484]
[1718171293337,11.6445,150.13,150.12,0.8623484]
[1718171295342,2.4644,150.14,150.12,0.8623484]
[1718171296734,10.9644,150.14,150.12,0.8623484]
[1718171296948,0.34,150.15,150.12,0.8623484]
[1718171297237,10.9638,150.17,150.13,2.4644]
[1718171297943,10.9638,150.17,150.12,3.3269484]
[1718171298251,2.464,150.16,150.12,0.8623484]
[1718171299257,10.964,150.16,150.12,0.8623484]
[1718171300233,2.464,150.16,150.12,3.3269484]
[1718171300424,10.964,150.16,150.12,0.8623484]
[1718171302145,10.964,150.16,150.12,3.3269484]
[1718171302756,10.964,150.16,150.12,0.8623484]
[1718171303347,2.4642,150.15,150.12,0.8623484]
[1718171303669,0.17,150.14,150.12,0.8623484]
[1718171303841,2.6344,150.14,150.12,0.8623484]
[1718171305744,0.17,150.14,150.12,0.8623484]
[1718171310367,2.6343,150.14,150.12,0.8623484]
[1718171310571,0.68,150.13,150.12,0.8623484]
[1718171310880,11.6445,150.13,150.12,0.8623484]
[1718171314571,3.1445,150.13,150.12,0.8623484]
[1718171314752,11.6445,150.13,150.12,0.8623484]
[1718171315970,3.1445,150.13,150.12,0.8623484]
[1718171316270,0.51,150.13,150.12,0.8623484]
[1718171316972,2.9745,150.13,150.12,0.8623484]
[1718171317757,3.1445,150.13,150.12,0.8623484]
[1718171320384,11.6445,150.13,150.12,0.8623484]
[1718171321063,33.8251,150.13,150.12,0.8623484]
[1718171322159,26.4316,150.13,150.12,0.8623484]
[1718171322359,11.6445,150.13,150.12,0.8623484]
[1718171322969,0.68,150.13,150.12,0.8623484]
[1718171323279,2.4641,150.16,150.12,0.8623484]
[1718171323476,2.4641,150.16,150.12,3.3269484]
[1718171323781,2.4639,150.17,150.12,11.8268484]
[1718171325462,2.464,150.16,150.12,11.8268484]
[1718171325683,2.4639,150.17,150.13,2.4645]
[1718171325985,2.4634,150.2,150.15,10.9641]
[1718171326281,2.4634,150.2,150.16,2.464]
[1718171326661,2.4631,150.22,150.17,2.4637]
[1718171326866,10.9631,150.22,150.17,2.4637]
[1718171327468,2.4633,150.2,150.16,8.5]
[1718171327877,2.4633,150.2,150.15,10.9641]
[1718171328081,2.4635,150.19,150.15,8.5]
[1718171328477,8.5,150.21,150.15,8.5]
[1718171328667,10.9634,150.2,150.15,2.4641]
[1718171329092,10.9634,150.2,150.14,8.5]
[1718171329093,2.4635,150.19,150.14,2.4642]
[1718171329371,10.9635,150.19,150.14,2.4642]
[1718171330065,8.5,150.19,150.15,2.4641]
[1718171330267,8.5,150.19,150.14,2.4643]
[1718171330268,8.67,150.18,150.14,2.4643]
[1718171331074,11.1337,150.18,150.13,10.9644]
[1718171331386,8.67,150.18,150.14,2.4643]
[1718171332187,8.67,150.18,150.13,2.4644]
[1718171332188,11.1337,150.18,150.13,2.4644]
[1718171332363,2.6337,150.18,150.13,2.4644]
[1718171332560,0.17,150.18,150.15,2.4641]
[1718171332765,0.68,150.18,150.15,2.4641]
[1718171333774,0.68,150.18,150.14,2.4642]
[1718171334272,8.5,150.17,150.12,0.8623484]
[1718171334583,0.17,150.16,150.12,3.3269484]
[1718171334789,0.68,150.16,150.12,3.3269484]
[1718171335270,0.68,150.16,150.12,0.8623484]
[1718171335584,11.1343,150.14,150.12,0.8623484]
[1718171335884,2.974,150.16,150.12,0.8623484]
[1718171336069,0.17,150.14,150.12,0.8623484]
[1718171336384,9.18,150.14,150.12,0.8623484]
[1718171336562,0.68,150.14,150.12,0.8623484]
[1718171336765,0.51,150.14,150.12,0.8623484]
[1718171336960,8.5,150.15,150.12,0.8623484]
[1718171337987,0.17,150.15,150.12,0.8623484]
[1718171338185,0.68,150.15,150.12,0.8623484]
[1718171339187,3.1442,150.15,150.12,0.8623484]
[1718171339369,11.6442,150.15,150.12,0.8623484]
[1718171339562,2.4641,150.16,150.12,0.8623484]
[1718171339875,10.9641,150.16,150.12,0.8623484]
[1718171340071,2.4641,150.16,150.12,0.8623484]
[1718171340278,2.4641,150.16,150.12,3.3269484]
[1718171340474,10.964,150.16,150.12,0.8623484]
[1718171342276,8.5,150.15,150.12,0.8623484]
[1718171343185,10.9642,150.15,150.12,0.8623484]
[1718171343789,2.4644,150.14,150.12,0.8623484]
[1718171344395,2.6345,150.13,150.12,0.8623484]
[1718171344579,3.1445,150.13,150.12,0.8623484]
[1718171345190,11.6445,150.13,150.12,0.8623484]
[1718171346383,0.68,150.13,150.12,0.8623484]
[1718171346594,9.18,150.13,150.12,0.8623484]
[1718171346791,0.68,150.13,150.12,0.8623484]
[1718171347095,0.34,150.13,150.12,0.8623484]
[1718171349892,2.8045,150.13,150.12,0.8623484]
[1718171350080,3.1445,150.13,150.12,0.8623484]
[1718171351005,0.68,150.13,150.12,0.8623484]
[1718171352201,4.9272,150.19,150.12,0.8623484]
[1718171352403,10.964,150.16,150.12,0.8623484]
[1718171353181,2.4645,150.13,150.12,0.8623484]
[1718171353403,0.17,150.16,150.12,0.8623484]
[1718171353586,2.4643,150.15,150.12,0.8623484]
[1718171353902,10.9643,150.15,150.12,0.8623484]
[1718171354277,2.6341,150.16,150.12,0.8623484]
[1718171354481,8.5,150.17,150.12,3.3268484]
[1718171354909,43.21348392,150.2,150.12,3.3268484]
[1718171354910,10.964,150.16,150.12,3.3268484]
[1718171355200,10.964,150.16,150.12,0.8623484]
[1718171355504,2.4636,150.19,150.14,2.4643]
[1718171355808,2.4634,150.2,150.15,2.4641]
[1718171355995,10.9634,150.2,150.15,2.4641]
[1718171356499,2.4638,150.18,150.13,17.0834]
[1718171356703,10.9636,150.19,150.14,2.4643]
[1718171356889,10.9636,150.19,150.14,3.79620143]
[1718171357090,10.9636,150.19,150.15,2.4641]
[1718171357303,10.9636,150.19,150.14,2.4642]
[1718171357498,10.9636,150.19,150.14,3.7961002]
[1718171358486,10.9636,150.19,150.15,2.4641]
[1718171359687,4.9246,150.27,150.17,8.5]
[1718171359889,4.9246,150.27,150.19,10.9635]
[1718171359890,2.4628,150.24,150.19,10.9635]
[1718171360197,10.9625,150.25,150.2,2.4633]
[1718171361709,2.4627,150.24,150.19,10.9634]
[1718171361913,10.9626,150.25,150.19,10.9634]
[1718171362628,2.4624,150.26,150.21,2.4631]
[1718171362932,2.4624,150.26,150.21,12.29419294]
[1718171363301,2.4624,150.26,150.21,10.9631]
[1718171363738,2.4622,150.27,150.21,2.4631]
[1718171363906,10.9622,150.27,150.22,2.463]
[1718171364217,8.5,150.26,150.22,2.463]
[1718171364402,10.29063092,150.31,150.21,15.1683]
[1718171364605,8.5,150.28,150.23,2.4628]